[Event "Titled Tuesday Blitz November 15 Early 2022"]
[White "Onslow, Alfie"]
[Black "Postnikov, Daniil"]
[WhiteFideId "436976"]
[BlackFideId "4166329"]
[WhiteElo "2015"]
[BlackElo "2261"]
[Result "0-1"]
[Round "06"]
[TimeControl "180+1"]
[Date "2022.11.16"]
[WhiteClock "0:00:03"]
[BlackClock "0:00:44"]

1. e4 {[%clk 0:03:00]}  c5 {[%clk 0:02:59]} 2. Nc3 {[%clk 0:03:00]}  e6 {[%clk 0:02:56]} 3. Nf3 {[%clk 0:02:59]}  Nc6 {[%clk 0:02:50]} 4. Bb5 {[%clk 0:02:58]}  Nge7 {[%clk 0:02:48]} 5. O-O {[%clk 0:02:56]}  a6 {[%clk 0:02:48]} 6. Bxc6 {[%clk 0:02:56]}  Nxc6 {[%clk 0:02:49]} 7. d4 {[%clk 0:02:56]}  cxd4 {[%clk 0:02:46]} 8. Nxd4 {[%clk 0:02:57]}  Be7 {[%clk 0:02:43]} 9. Nxc6 {[%clk 0:02:54]}  bxc6 {[%clk 0:02:43]} 10. e5 {[%clk 0:02:54]}  O-O {[%clk 0:02:30]} 11. Qg4 {[%clk 0:02:51]}  f5 {[%clk 0:02:27]} 12. exf6 {[%clk 0:02:23]}  Bxf6 {[%clk 0:02:26]} 13. Ne4 {[%clk 0:02:23]}  d5 {[%clk 0:02:25]} 14. Nxf6+ {[%clk 0:02:22]}  Qxf6 {[%clk 0:02:26]} 15. Qe2 {[%clk 0:02:01]}  e5 {[%clk 0:02:21]} 16. c4 {[%clk 0:01:56]}  a5 {[%clk 0:02:16]} 17. b3 {[%clk 0:01:56]}  a4 {[%clk 0:02:12]} 18. Bb2 {[%clk 0:01:53]}  d4 {[%clk 0:02:11]} 19. b4 {[%clk 0:01:22]}  a3 {[%clk 0:01:51]} 20. Bc1 {[%clk 0:01:19]}  Bf5 {[%clk 0:01:48]} 21. Bd2 {[%clk 0:01:14]}  e4 {[%clk 0:01:46]} 22. Rac1 {[%clk 0:00:46]}  Bg6 {[%clk 0:01:39]} 23. Rfe1 {[%clk 0:00:23]}  Kh8 {[%clk 0:01:30]} 24. Rcd1 {[%clk 0:00:18]}  Qe5 {[%clk 0:01:04]} 25. Bc1 {[%clk 0:00:18]}  Qf6 {[%clk 0:01:01]} 26. Qd2 {[%clk 0:00:18]}  d3 {[%clk 0:00:53]} 27. Qe3 {[%clk 0:00:16]}  Qc3 {[%clk 0:00:51]} 28. Qc5 {[%clk 0:00:10]}  Rf5 {[%clk 0:00:47]} 29. Qxc6 {[%clk 0:00:09]}  Raf8 {[%clk 0:00:46]} 30. Bd2 {[%clk 0:00:06]}  Qb2 {[%clk 0:00:45]} 31. Be3 {[%clk 0:00:05]}  Rxf2 {[%clk 0:00:43]} 32. Bxf2 {[%clk 0:00:05]}  Qxf2+ {[%clk 0:00:44]} 33. Kh1 {[%clk 0:00:06]}  d2 {[%clk 0:00:44]} 34. Rxe4 {[%clk 0:00:04]}  Qf1+ {[%clk 0:00:43]} 35. Rxf1 {[%clk 0:00:03]}  Rxf1# {[%clk 0:00:44]} 0-1


[Site "https://www.chess.com"]

[Event "Titled Tuesday Blitz November 15 Early 2022"]
[White "Oro, Faustino"]
[Black "Gokerkan, Cem Kaan"]
[WhiteFideId "20000197"]
[BlackFideId "6336760"]
[WhiteElo "2066"]
[BlackElo "2365"]
[Result "1-0"]
[Round "06"]
[TimeControl "180+1"]
[Date "2022.11.16"]
[WhiteClock "0:00:05"]
[BlackClock "0:00:03"]

1. e4 {[%clk 0:03:00]}  Nf6 {[%clk 0:02:59]} 2. e5 {[%clk 0:02:59]}  Nd5 {[%clk 0:03:00]} 3. d4 {[%clk 0:02:59]}  d6 {[%clk 0:03:00]} 4. c4 {[%clk 0:03:00]}  Nb6 {[%clk 0:03:01]} 5. exd6 {[%clk 0:02:59]}  cxd6 {[%clk 0:03:01]} 6. Nc3 {[%clk 0:02:58]}  g6 {[%clk 0:03:01]} 7. Be3 {[%clk 0:02:58]}  Bg7 {[%clk 0:03:02]} 8. Nf3 {[%clk 0:02:59]}  O-O {[%clk 0:03:02]} 9. h3 {[%clk 0:02:59]}  Nc6 {[%clk 0:03:02]} 10. Be2 {[%clk 0:02:57]}  e5 {[%clk 0:03:01]} 11. O-O {[%clk 0:02:52]}  Bf5 {[%clk 0:02:52]} 12. dxe5 {[%clk 0:02:36]}  dxe5 {[%clk 0:02:52]} 13. Nd5 {[%clk 0:02:06]}  Nxd5 {[%clk 0:02:38]} 14. cxd5 {[%clk 0:02:06]}  Ne7 {[%clk 0:01:53]} 15. Bc5 {[%clk 0:02:01]}  Rc8 {[%clk 0:01:49]} 16. Ba3 {[%clk 0:01:54]}  Re8 {[%clk 0:01:48]} 17. d6 {[%clk 0:01:52]}  Nc6 {[%clk 0:01:48]} 18. Rc1 {[%clk 0:01:27]}  e4 {[%clk 0:01:48]} 19. Nh2 {[%clk 0:01:26]}  h5 {[%clk 0:01:43]} 20. Re1 {[%clk 0:01:24]}  Qd7 {[%clk 0:01:35]} 21. Nf1 {[%clk 0:01:22]}  Rcd8 {[%clk 0:01:10]} 22. Ne3 {[%clk 0:01:17]}  Be6 {[%clk 0:01:10]} 23. Nd5 {[%clk 0:00:56]}  Bxd5 {[%clk 0:00:56]} 24. Qxd5 {[%clk 0:00:56]}  Re5 {[%clk 0:00:57]} 25. Qd2 {[%clk 0:00:47]}  Bf8 {[%clk 0:00:48]} 26. Red1 {[%clk 0:00:43]}  e3 {[%clk 0:00:33]} 27. fxe3 {[%clk 0:00:41]}  Bh6 {[%clk 0:00:34]} 28. Rc3 {[%clk 0:00:40]}  Qe6 {[%clk 0:00:34]} 29. Bc4 {[%clk 0:00:30]}  Qd7 {[%clk 0:00:31]} 30. Rf1 {[%clk 0:00:27]}  Rf8 {[%clk 0:00:32]} 31. Qd3 {[%clk 0:00:20]}  Kg7 {[%clk 0:00:25]} 32. Rf3 {[%clk 0:00:18]}  Ra5 {[%clk 0:00:20]} 33. Bd5 {[%clk 0:00:17]}  Ne5 {[%clk 0:00:18]} 34. Qd4 {[%clk 0:00:17]}  Rxd5 {[%clk 0:00:14]} 35. Qxd5 {[%clk 0:00:17]}  Nxf3+ {[%clk 0:00:14]} 36. Qxf3 {[%clk 0:00:18]}  Re8 {[%clk 0:00:11]} 37. Rc7 {[%clk 0:00:12]}  Qe6 {[%clk 0:00:12]} 38. Bc5 {[%clk 0:00:07]}  b6 {[%clk 0:00:11]} 39. Bd4+ {[%clk 0:00:07]}  Kg8 {[%clk 0:00:11]} 40. d7 {[%clk 0:00:08]}  Rd8 {[%clk 0:00:12]} 41. Qb7 {[%clk 0:00:08]}  Bg7 {[%clk 0:00:05]} 42. Qc8 {[%clk 0:00:05]}  Bf6 {[%clk 0:00:03]} 43. Bxf6 {[%clk 0:00:04]}  Qxe3+ {[%clk 0:00:04]} 44. Kf1 {[%clk 0:00:03]}  Qf4+ {[%clk 0:00:04]} 45. Ke2 {[%clk 0:00:04]}  Qe4+ {[%clk 0:00:04]} 46. Kd2 {[%clk 0:00:05]}  Qxg2+ {[%clk 0:00:04]} 47. Kc3 {[%clk 0:00:04]}  Qf3+ {[%clk 0:00:04]} 48. Kb4 {[%clk 0:00:04]}  Qe4+ {[%clk 0:00:04]} 49. Kb5 {[%clk 0:00:03]}  Qf5+ {[%clk 0:00:03]} 50. Ka6 {[%clk 0:00:04]}  Qf1+ {[%clk 0:00:02]} 51. Kb7 {[%clk 0:00:04]}  Qf3+ {[%clk 0:00:03]} 52. Kb8 {[%clk 0:00:04]}  Qxf6 {[%clk 0:00:02]} 53. Qxd8+ {[%clk 0:00:04]}  Qxd8+ {[%clk 0:00:03]} 54. Rc8 {[%clk 0:00:05]} 1-0


[Site "https://www.chess.com"]

[Event "Titled Tuesday Blitz November 15 Early 2022"]
[White "Papasimakopoulos, Alexandros"]
[Black "Gorodetzky, David"]
[WhiteFideId "4244125"]
[BlackFideId "2813416"]
[WhiteElo "2365"]
[BlackElo "2497"]
[Result "0-1"]
[Round "06"]
[TimeControl "180+1"]
[Date "2022.11.15"]
[WhiteClock "0:00:08"]
[BlackClock "0:00:08"]

1. d4 {[%clk 0:02:56]}  Nf6 {[%clk 0:02:54]} 2. c4 {[%clk 0:02:52]}  e6 {[%clk 0:02:54]} 3. Nc3 {[%clk 0:02:51]}  d5 {[%clk 0:02:55]} 4. cxd5 {[%clk 0:02:51]}  Nxd5 {[%clk 0:02:56]} 5. e4 {[%clk 0:02:51]}  Nxc3 {[%clk 0:02:57]} 6. bxc3 {[%clk 0:02:52]}  c5 {[%clk 0:02:57]} 7. Rb1 {[%clk 0:02:52]}  Be7 {[%clk 0:02:56]} 8. Nf3 {[%clk 0:02:52]}  O-O {[%clk 0:02:53]} 9. Bc4 {[%clk 0:02:53]}  Qc7 {[%clk 0:02:52]} 10. Qe2 {[%clk 0:02:53]}  a6 {[%clk 0:02:50]} 11. O-O {[%clk 0:02:44]}  b5 {[%clk 0:02:49]} 12. Bd3 {[%clk 0:02:44]}  Bb7 {[%clk 0:02:49]} 13. a4 {[%clk 0:02:36]}  bxa4 {[%clk 0:02:30]} 14. Bf4 {[%clk 0:02:37]}  Qc8 {[%clk 0:02:09]} 15. Ra1 {[%clk 0:02:37]}  Nd7 {[%clk 0:02:07]} 16. Rxa4 {[%clk 0:02:35]}  Rd8 {[%clk 0:01:56]} 17. h4 {[%clk 0:02:30]}  Nf6 {[%clk 0:01:40]} 18. Rfa1 {[%clk 0:02:26]}  cxd4 {[%clk 0:01:38]} 19. cxd4 {[%clk 0:02:26]}  Qc6 {[%clk 0:01:38]} 20. Rc4 {[%clk 0:02:20]}  Qe8 {[%clk 0:01:33]} 21. Rc7 {[%clk 0:02:15]}  Rd7 {[%clk 0:01:33]} 22. Rc2 {[%clk 0:02:00]}  h6 {[%clk 0:01:24]} 23. Rb2 {[%clk 0:01:55]}  a5 {[%clk 0:01:03]} 24. Bb5 {[%clk 0:01:53]}  Bxe4 {[%clk 0:01:02]} 25. Ne5 {[%clk 0:01:52]}  Bd5 {[%clk 0:00:56]} 26. Nxd7 {[%clk 0:01:41]}  Nxd7 {[%clk 0:00:56]} 27. Bxd7 {[%clk 0:01:40]}  Qxd7 {[%clk 0:00:55]} 28. Qb5 {[%clk 0:01:41]}  Bc6 {[%clk 0:00:47]} 29. Qc4 {[%clk 0:01:31]}  a4 {[%clk 0:00:42]} 30. h5 {[%clk 0:01:24]}  a3 {[%clk 0:00:40]} 31. Rb3 {[%clk 0:00:54]}  a2 {[%clk 0:00:29]} 32. Be5 {[%clk 0:00:44]}  Bd5 {[%clk 0:00:24]} 33. Qb5 {[%clk 0:00:44]}  Qxb5 {[%clk 0:00:23]} 34. Rxb5 {[%clk 0:00:45]}  f6 {[%clk 0:00:23]} 35. Bf4 {[%clk 0:00:43]}  Kf7 {[%clk 0:00:22]} 36. f3 {[%clk 0:00:40]}  Ra4 {[%clk 0:00:20]} 37. Be3 {[%clk 0:00:39]}  Ra3 {[%clk 0:00:20]} 38. Kf2 {[%clk 0:00:38]}  Rc3 {[%clk 0:00:20]} 39. Rxd5 {[%clk 0:00:37]}  Rc2+ {[%clk 0:00:20]} 40. Ke1 {[%clk 0:00:35]}  exd5 {[%clk 0:00:21]} 41. Bd2 {[%clk 0:00:35]}  Rb2 {[%clk 0:00:21]} 42. Bc3 {[%clk 0:00:27]}  Rb1+ {[%clk 0:00:10]} 43. Kd2 {[%clk 0:00:20]}  Bb4 {[%clk 0:00:10]} 44. Rxa2 {[%clk 0:00:20]}  Bxc3+ {[%clk 0:00:06]} 45. Kxc3 {[%clk 0:00:21]}  Rh1 {[%clk 0:00:06]} 46. Ra7+ {[%clk 0:00:18]}  Kg8 {[%clk 0:00:06]} 47. Ra8+ {[%clk 0:00:08]}  Kf7 {[%clk 0:00:05]} 48. Ra7+ {[%clk 0:00:08]}  Kg8 {[%clk 0:00:06]} 49. Rd7 {[%clk 0:00:09]}  Rxh5 {[%clk 0:00:05]} 50. Kd3 {[%clk 0:00:09]}  Rg5 {[%clk 0:00:04]} 51. g4 {[%clk 0:00:09]}  h5 {[%clk 0:00:04]} 52. gxh5 {[%clk 0:00:10]}  Rxh5 {[%clk 0:00:05]} 53. Ke3 {[%clk 0:00:10]}  Rf5 {[%clk 0:00:05]} 54. f4 {[%clk 0:00:08]}  Kf8 {[%clk 0:00:06]} 55. Ra7 {[%clk 0:00:05]}  Rh5 {[%clk 0:00:06]} 56. Rd7 {[%clk 0:00:04]}  Rf5 {[%clk 0:00:05]} 57. Ra7 {[%clk 0:00:03]}  Kg8 {[%clk 0:00:05]} 58. Rd7 {[%clk 0:00:03]}  Kh7 {[%clk 0:00:06]} 59. Re7 {[%clk 0:00:03]}  Kg6 {[%clk 0:00:06]} 60. Rc7 {[%clk 0:00:04]}  Kh6 {[%clk 0:00:07]} 61. Rd7 {[%clk 0:00:04]}  g6 {[%clk 0:00:07]} 62. Rd6 {[%clk 0:00:04]}  Kh5 {[%clk 0:00:07]} 63. Rd8 {[%clk 0:00:05]}  Kg4 {[%clk 0:00:08]} 64. Rg8 {[%clk 0:00:05]}  g5 {[%clk 0:00:07]} 65. fxg5 {[%clk 0:00:06]}  fxg5 {[%clk 0:00:08]} 66. Rd8 {[%clk 0:00:06]}  Kg3 {[%clk 0:00:08]} 67. Rd6 {[%clk 0:00:06]}  g4 {[%clk 0:00:08]} 68. Rg6 {[%clk 0:00:07]}  Kh3 {[%clk 0:00:09]} 69. Rh6+ {[%clk 0:00:07]}  Kg2 {[%clk 0:00:09]} 70. Re6 {[%clk 0:00:08]}  g3 {[%clk 0:00:09]} 71. Re5 {[%clk 0:00:08]}  Rxe5+ {[%clk 0:00:05]} 72. dxe5 {[%clk 0:00:09]}  Kf1 {[%clk 0:00:05]} 73. e6 {[%clk 0:00:09]}  g2 {[%clk 0:00:06]} 74. e7 {[%clk 0:00:08]}  g1=Q+ {[%clk 0:00:07]} 75. Kd3 {[%clk 0:00:09]}  Qg6+ {[%clk 0:00:07]} 76. Kd4 {[%clk 0:00:09]}  Qe8 {[%clk 0:00:07]} 77. Kxd5 {[%clk 0:00:08]}  Qxe7 {[%clk 0:00:08]} 78. Kd4 {[%clk 0:00:08]}  Ke2 {[%clk 0:00:08]} 0-1


[Site "https://www.chess.com"]

[Event "Titled Tuesday Blitz November 15 Early 2022"]
[White "Papayan, Oleg"]
[Black "Pg, Mohd Omar Ak Hira"]
[WhiteFideId "4193911"]
[BlackFideId "10500103"]
[WhiteElo "2153"]
[BlackElo "2184"]
[Result "1-0"]
[Round "06"]
[TimeControl "180+1"]
[Date "2022.11.16"]
[WhiteClock "0:01:32"]
[BlackClock "0:00:01"]

1. e4 {[%clk 0:03:00]}  c5 {[%clk 0:02:53]} 2. Nf3 {[%clk 0:03:00]}  d6 {[%clk 0:02:53]} 3. c3 {[%clk 0:02:59]}  Nf6 {[%clk 0:02:51]} 4. Bd3 {[%clk 0:03:00]}  Bg4 {[%clk 0:02:46]} 5. Bc2 {[%clk 0:02:54]}  Nc6 {[%clk 0:02:45]} 6. h3 {[%clk 0:02:52]}  Bh5 {[%clk 0:02:43]} 7. O-O {[%clk 0:02:50]}  e5 {[%clk 0:02:31]} 8. Re1 {[%clk 0:02:49]}  Be7 {[%clk 0:02:29]} 9. d3 {[%clk 0:02:49]}  O-O {[%clk 0:02:28]} 10. Nbd2 {[%clk 0:02:49]}  a6 {[%clk 0:02:28]} 11. Nf1 {[%clk 0:02:50]}  b5 {[%clk 0:02:28]} 12. Ng3 {[%clk 0:02:50]}  Bg6 {[%clk 0:02:29]} 13. d4 {[%clk 0:02:49]}  cxd4 {[%clk 0:02:28]} 14. cxd4 {[%clk 0:02:50]}  Rc8 {[%clk 0:02:13]} 15. d5 {[%clk 0:02:49]}  Nb4 {[%clk 0:02:05]} 16. Bb1 {[%clk 0:02:47]}  a5 {[%clk 0:02:05]} 17. a3 {[%clk 0:02:32]}  Na6 {[%clk 0:02:05]} 18. Bd3 {[%clk 0:02:31]}  Nc5 {[%clk 0:02:00]} 19. Bc2 {[%clk 0:02:27]}  Nh5 {[%clk 0:01:41]} 20. Nf5 {[%clk 0:02:24]}  Bxf5 {[%clk 0:01:30]} 21. exf5 {[%clk 0:02:25]}  Nf6 {[%clk 0:01:30]} 22. b4 {[%clk 0:02:21]}  Na6 {[%clk 0:01:29]} 23. Bd3 {[%clk 0:02:10]}  axb4 {[%clk 0:00:56]} 24. Bxb5 {[%clk 0:02:06]}  Nc7 {[%clk 0:00:56]} 25. Bc6 {[%clk 0:02:05]}  Rb8 {[%clk 0:00:50]} 26. axb4 {[%clk 0:02:05]}  Rxb4 {[%clk 0:00:50]} 27. Ba3 {[%clk 0:02:01]}  Rf4 {[%clk 0:00:43]} 28. Nxe5 {[%clk 0:02:02]}  dxe5 {[%clk 0:00:41]} 29. d6 {[%clk 0:02:02]}  Bxd6 {[%clk 0:00:25]} 30. Qxd6 {[%clk 0:01:59]}  Qxd6 {[%clk 0:00:20]} 31. Bxd6 {[%clk 0:02:00]}  Rc4 {[%clk 0:00:13]} 32. Bxf8 {[%clk 0:01:54]}  Rxc6 {[%clk 0:00:14]} 33. Rac1 {[%clk 0:01:40]}  Rxc1 {[%clk 0:00:06]} 34. Rxc1 {[%clk 0:01:41]}  Ncd5 {[%clk 0:00:06]} 35. Rc8 {[%clk 0:01:34]}  h6 {[%clk 0:00:03]} 36. Bd6+ {[%clk 0:01:32]}  Kh7 {[%clk 0:00:04]} 37. Bxe5 {[%clk 0:01:33]}  h5 {[%clk 0:00:02]} 38. Bxf6 {[%clk 0:01:33]}  Nxf6 {[%clk 0:00:01]} 39. Rf8 {[%clk 0:01:32]} 1-0


[Site "https://www.chess.com"]

[Event "Titled Tuesday Blitz November 15 Early 2022"]
[White "Parpiev, Isaak"]
[Black "Muminova, Nafisa"]
[WhiteFideId "34281576"]
[BlackFideId "14201526"]
[WhiteElo "2094"]
[BlackElo "2258"]
[Result "1-0"]
[Round "06"]
[TimeControl "180+1"]
[Date "2022.11.16"]
[WhiteClock "0:01:09"]
[BlackClock "0:00:15"]

1. d4 {[%clk 0:03:00]}  Nf6 {[%clk 0:02:58]} 2. c4 {[%clk 0:03:00]}  e6 {[%clk 0:02:58]} 3. Nc3 {[%clk 0:03:00]}  Bb4 {[%clk 0:02:53]} 4. e3 {[%clk 0:03:00]}  b6 {[%clk 0:02:52]} 5. a3 {[%clk 0:02:39]}  Bxc3+ {[%clk 0:02:50]} 6. bxc3 {[%clk 0:02:40]}  Bb7 {[%clk 0:02:50]} 7. f3 {[%clk 0:02:39]}  O-O {[%clk 0:02:44]} 8. Bd3 {[%clk 0:02:38]}  d5 {[%clk 0:02:40]} 9. cxd5 {[%clk 0:02:34]}  exd5 {[%clk 0:02:37]} 10. Ne2 {[%clk 0:02:34]}  c5 {[%clk 0:02:37]} 11. O-O {[%clk 0:02:34]}  c4 {[%clk 0:02:37]} 12. Bc2 {[%clk 0:02:33]}  Re8 {[%clk 0:02:37]} 13. Ng3 {[%clk 0:02:33]}  Nbd7 {[%clk 0:02:27]} 14. a4 {[%clk 0:02:18]}  Nf8 {[%clk 0:02:23]} 15. Re1 {[%clk 0:01:57]}  h5 {[%clk 0:02:12]} 16. e4 {[%clk 0:01:35]}  h4 {[%clk 0:02:12]} 17. Nf5 {[%clk 0:01:35]}  dxe4 {[%clk 0:02:10]} 18. fxe4 {[%clk 0:01:35]}  Bxe4 {[%clk 0:01:57]} 19. Bxe4 {[%clk 0:01:32]}  Nxe4 {[%clk 0:01:20]} 20. Qg4 {[%clk 0:01:29]}  g6 {[%clk 0:00:47]} 21. Nh6+ {[%clk 0:01:24]}  Kh7 {[%clk 0:00:33]} 22. Rxe4 {[%clk 0:01:24]}  f5 {[%clk 0:00:19]} 23. Rxe8 {[%clk 0:01:19]}  Qxe8 {[%clk 0:00:17]} 24. Qxh4 {[%clk 0:01:19]}  Kg7 {[%clk 0:00:17]} 25. Bf4 {[%clk 0:01:11]}  Nd7 {[%clk 0:00:15]} 26. Re1 {[%clk 0:01:10]}  Qf7 {[%clk 0:00:15]} 27. Nxf7 {[%clk 0:01:09]} 1-0


[Site "https://www.chess.com"]

[Event "Titled Tuesday Blitz November 15 Early 2022"]
[White "Pein, Jonathan"]
[Black "Sargsyan, Anna M."]
[WhiteFideId "417092"]
[BlackFideId "13308130"]
[WhiteElo "2227"]
[BlackElo "2284"]
[Result "0-1"]
[Round "06"]
[TimeControl "180+1"]
[Date "2022.11.16"]
[WhiteClock "0:00:18"]
[BlackClock "0:00:07"]

1. d4 {[%clk 0:03:00]}  d5 {[%clk 0:02:56]} 2. Nc3 {[%clk 0:03:00]}  Nf6 {[%clk 0:02:53]} 3. Bg5 {[%clk 0:03:00]}  Bf5 {[%clk 0:02:52]} 4. f3 {[%clk 0:03:00]}  c6 {[%clk 0:02:45]} 5. Qd2 {[%clk 0:02:59]}  Nbd7 {[%clk 0:02:44]} 6. e3 {[%clk 0:02:55]}  Qa5 {[%clk 0:02:40]} 7. g4 {[%clk 0:02:51]}  Bg6 {[%clk 0:02:40]} 8. Nge2 {[%clk 0:02:46]}  e6 {[%clk 0:02:35]} 9. Nf4 {[%clk 0:02:46]}  Bd6 {[%clk 0:02:17]} 10. h4 {[%clk 0:02:45]}  h6 {[%clk 0:02:16]} 11. Nxg6 {[%clk 0:02:45]}  Bg3+ {[%clk 0:01:56]} 12. Kd1 {[%clk 0:02:40]}  fxg6 {[%clk 0:01:47]} 13. Bxf6 {[%clk 0:02:30]}  gxf6 {[%clk 0:01:39]} 14. f4 {[%clk 0:02:30]}  g5 {[%clk 0:01:32]} 15. hxg5 {[%clk 0:02:21]}  fxg5 {[%clk 0:01:32]} 16. fxg5 {[%clk 0:01:56]}  O-O-O {[%clk 0:01:30]} 17. gxh6 {[%clk 0:01:51]}  Rdf8 {[%clk 0:01:30]} 18. Ne2 {[%clk 0:01:50]}  Qc7 {[%clk 0:01:28]} 19. g5 {[%clk 0:01:44]}  Rfg8 {[%clk 0:00:16]} 20. Bh3 {[%clk 0:01:44]}  Rxg5 {[%clk 0:00:13]} 21. Bxe6 {[%clk 0:01:44]}  Qd6 {[%clk 0:00:14]} 22. Bxd7+ {[%clk 0:01:37]}  Kxd7 {[%clk 0:00:13]} 23. h7 {[%clk 0:01:32]}  Rg7 {[%clk 0:00:13]} 24. Qd3 {[%clk 0:01:31]}  Bh2 {[%clk 0:00:10]} 25. Qf5+ {[%clk 0:01:27]}  Kc7 {[%clk 0:00:10]} 26. Kd2 {[%clk 0:01:22]}  Rgxh7 {[%clk 0:00:10]} 27. Raf1 {[%clk 0:01:18]}  Kb6 {[%clk 0:00:09]} 28. c3 {[%clk 0:01:10]}  Rh3 {[%clk 0:00:09]} 29. Rf2 {[%clk 0:01:04]}  R3h5 {[%clk 0:00:09]} 30. Qf6 {[%clk 0:00:57]}  Qd7 {[%clk 0:00:04]} 31. Qf7 {[%clk 0:00:50]}  Qg4 {[%clk 0:00:04]} 32. Qf3 {[%clk 0:00:44]}  Qe6 {[%clk 0:00:04]} 33. Nf4 {[%clk 0:00:30]}  Bxf4 {[%clk 0:00:02]} 34. Rxh5 {[%clk 0:00:29]}  Bxe3+ {[%clk 0:00:03]} 35. Qxe3 {[%clk 0:00:28]}  Qxe3+ {[%clk 0:00:04]} 36. Kxe3 {[%clk 0:00:28]}  Rxh5 {[%clk 0:00:04]} 37. Kd3 {[%clk 0:00:28]}  Rh1 {[%clk 0:00:05]} 38. Kc2 {[%clk 0:00:28]}  Ra1 {[%clk 0:00:05]} 39. Kb3 {[%clk 0:00:27]}  a5 {[%clk 0:00:04]} 40. a4 {[%clk 0:00:27]}  Rd1 {[%clk 0:00:03]} 41. Kc2 {[%clk 0:00:26]}  Rh1 {[%clk 0:00:03]} 42. Kb3 {[%clk 0:00:25]}  Rh6 {[%clk 0:00:04]} 43. Rf3 {[%clk 0:00:25]}  Rh7 {[%clk 0:00:04]} 44. Re3 {[%clk 0:00:25]}  Rf7 {[%clk 0:00:04]} 45. Re2 {[%clk 0:00:25]}  Rf4 {[%clk 0:00:05]} 46. Re5 {[%clk 0:00:25]}  Rf1 {[%clk 0:00:05]} 47. Kc2 {[%clk 0:00:25]}  Ra1 {[%clk 0:00:05]} 48. Kb3 {[%clk 0:00:24]}  Kc7 {[%clk 0:00:05]} 49. Re7+ {[%clk 0:00:24]}  Kb6 {[%clk 0:00:05]} 50. Re8 {[%clk 0:00:25]}  Rf1 {[%clk 0:00:04]} 51. Re3 {[%clk 0:00:24]}  Rf7 {[%clk 0:00:04]} 52. c4 {[%clk 0:00:23]}  Rc7 {[%clk 0:00:05]} 53. c5+ {[%clk 0:00:22]}  Ka7 {[%clk 0:00:05]} 54. Kc3 {[%clk 0:00:21]}  Rh7 {[%clk 0:00:05]} 55. b4 {[%clk 0:00:22]}  axb4+ {[%clk 0:00:05]} 56. Kxb4 {[%clk 0:00:23]}  Rh1 {[%clk 0:00:05]} 57. Rd3 {[%clk 0:00:21]}  Rb1+ {[%clk 0:00:05]} 58. Ka5 {[%clk 0:00:21]}  Rb2 {[%clk 0:00:03]} 59. Rd1 {[%clk 0:00:20]}  Rc2 {[%clk 0:00:03]} 60. Rd3 {[%clk 0:00:20]}  Rc4 {[%clk 0:00:03]} 61. Rd1 {[%clk 0:00:20]}  Rc2 {[%clk 0:00:02]} 62. Kb4 {[%clk 0:00:20]}  Rc4+ {[%clk 0:00:01]} 63. Kb3 {[%clk 0:00:21]}  Kb8 {[%clk 0:00:02]} 64. Rd3 {[%clk 0:00:20]}  Ka7 {[%clk 0:00:03]} 65. Rd2 {[%clk 0:00:20]}  Ka6 {[%clk 0:00:03]} 66. Rd3 {[%clk 0:00:17]}  Ka5 {[%clk 0:00:04]} 67. Rd1 {[%clk 0:00:14]}  Rxa4 {[%clk 0:00:03]} 68. Kc3 {[%clk 0:00:14]}  Rc4+ {[%clk 0:00:04]} 69. Kd3 {[%clk 0:00:15]}  Kb5 {[%clk 0:00:04]} 70. Rb1+ {[%clk 0:00:15]}  Rb4 {[%clk 0:00:04]} 71. Ra1 {[%clk 0:00:15]}  Ra4 {[%clk 0:00:05]} 72. Rb1+ {[%clk 0:00:16]}  Ka6 {[%clk 0:00:05]} 73. Rb6+ {[%clk 0:00:16]}  Ka7 {[%clk 0:00:06]} 74. Rb3 {[%clk 0:00:17]}  Ra6 {[%clk 0:00:06]} 75. Kc3 {[%clk 0:00:17]}  b5 {[%clk 0:00:06]} 76. cxb6+ {[%clk 0:00:17]}  Rxb6 {[%clk 0:00:07]} 77. Ra3+ {[%clk 0:00:17]}  Ra6 {[%clk 0:00:07]} 78. Kd3 {[%clk 0:00:18]}  Rxa3+ {[%clk 0:00:07]} 0-1


[Site "https://www.chess.com"]